[Event "Live Chess"]
[Site "Chess.com"]
[Date "2023.05.20"]
[Round "-"]
[White "Davidagye"]
[Black "TheSmoulderingMaster"]
[Result "1-0"]
[WhiteElo "1658"]
[BlackElo "1794"]
[TimeControl "300"]
[EndTime "9:59:22 PDT"]
[Termination "Davidagye won by resignation"]

1. b4 {[%clk 0:04:56.4]} 1... e5 {[%clk 0:04:58.7]} 2. Bb2 {[%clk 0:04:54.3]}
2... d6 {[%clk 0:04:56.9]} 3. c4 {[%clk 0:04:50.7]} 3... Nf6 {[%clk 0:04:56]} 4.
e3 {[%clk 0:04:49.3]} 4... Nc6 {[%clk 0:04:54]} 5. b5 {[%clk 0:04:47.9]} 5...
Ne7 {[%clk 0:04:52.4]} 6. Nf3 {[%clk 0:04:44.2]} 6... Ng6 {[%clk 0:04:51.2]} 7.
d4 {[%clk 0:04:43]} 7... Be7 {[%clk 0:04:50]} 8. Be2 {[%clk 0:04:42.1]} 8... O-O
{[%clk 0:04:49.1]} 9. Nc3 {[%clk 0:04:39.3]} 9... e4 {[%clk 0:04:47.3]} 10. Nd2
{[%clk 0:04:37.5]} 10... d5 {[%clk 0:04:45.7]} 11. cxd5 {[%clk 0:04:34.4]} 11...
Nxd5 {[%clk 0:04:44.9]} 12. Ndxe4 {[%clk 0:04:33.4]} 12... Be6 {[%clk 0:04:42]}
13. O-O {[%clk 0:04:32.1]} 13... f5 {[%clk 0:04:38.8]} 14. Nxd5 {[%clk
0:04:28.8]} 14... Bxd5 {[%clk 0:04:37.8]} 15. Nc3 {[%clk 0:04:27.9]} 15... Be6
{[%clk 0:04:29.6]} 16. Bf3 {[%clk 0:04:23.1]} 16... Rb8 {[%clk 0:04:26.6]} 17.
d5 {[%clk 0:04:18.4]} 17... Bf7 {[%clk 0:04:25]} 18. Qd4 {[%clk 0:04:17.1]}
18... Bf6 {[%clk 0:04:23]} 19. Qxa7 {[%clk 0:04:15]} 19... Ne5 {[%clk
0:04:20.3]} 20. Be2 {[%clk 0:04:04.3]} 20... Ng4 {[%clk 0:04:14.1]} 21. Bxg4
{[%clk 0:03:58.7]} 21... fxg4 {[%clk 0:04:13]} 22. e4 {[%clk 0:03:55.1]} 22...
Be5 {[%clk 0:04:10.2]} 23. g3 {[%clk 0:03:50.7]} 23... Qg5 {[%clk 0:04:07.2]}
24. Qe3 {[%clk 0:03:45.9]} 24... Qh5 {[%clk 0:04:04.7]} 25. f4 {[%clk 0:03:36]}
25... gxf3 {[%clk 0:04:03]} 26. Rxf3 {[%clk 0:03:31.4]} 26... c5 {[%clk
0:03:53.1]} 27. dxc6 {[%clk 0:03:22.6]} 27... bxc6 {[%clk 0:03:51.9]} 28. Rf5
{[%clk 0:03:07.5]} 28... Bxc3 {[%clk 0:03:39.1]} 29. Qxc3 {[%clk 0:03:01.8]}
29... Qg4 {[%clk 0:03:31.2]} 30. bxc6 {[%clk 0:02:52.9]} 30... Rxb2 {[%clk
0:03:26.8]} 31. Qxb2 {[%clk 0:02:49.4]} 31... Qxe4 {[%clk 0:03:25.5]} 32. Raf1
{[%clk 0:02:38.9]} 32... Qe3+ {[%clk 0:03:19.2]} 33. Qf2 {[%clk 0:02:33.4]}
33... Qc3 {[%clk 0:03:15.8]} 34. Rxf7 {[%clk 0:02:29.8]} 1-0

[Event "Live Chess"]
[Site "Chess.com"]
[Date "2023.05.20"]
[Round "-"]
[White "luckywookie"]
[Black "john_chandler"]
[Result "1-0"]
[WhiteElo "731"]
[BlackElo "847"]
[TimeControl "300"]
[EndTime "9:59:29 PDT"]
[Termination "luckywookie won on time"]

1. e4 {[%clk 0:04:55.9]} 1... d5 {[%clk 0:04:58.9]} 2. e5 {[%clk 0:04:49.7]}
2... c5 {[%clk 0:04:56.4]} 3. Nf3 {[%clk 0:04:46.6]} 3... Nc6 {[%clk 0:04:54.9]}
4. c3 {[%clk 0:04:44.2]} 4... Bg4 {[%clk 0:04:53.2]} 5. Bb5 {[%clk 0:04:41.4]}
5... e6 {[%clk 0:04:48.7]} 6. d4 {[%clk 0:04:39.1]} 6... a6 {[%clk 0:04:45.5]}
7. Bxc6+ {[%clk 0:04:36.5]} 7... bxc6 {[%clk 0:04:43.4]} 8. Bf4 {[%clk
0:04:14.2]} 8... c4 {[%clk 0:04:27.1]} 9. Nbd2 {[%clk 0:04:12]} 9... h6 {[%clk
0:04:16.2]} 10. Bg3 {[%clk 0:04:08.3]} 10... h5 {[%clk 0:03:59.7]} 11. h3 {[%clk
0:04:06.6]} 11... Bxf3 {[%clk 0:03:44.4]} 12. Nxf3 {[%clk 0:04:04.2]} 12... h4
{[%clk 0:03:37.5]} 13. Bf4 {[%clk 0:04:00.6]} 13... Be7 {[%clk 0:03:29.3]} 14.
Qd2 {[%clk 0:03:53]} 14... Nh6 {[%clk 0:03:12.9]} 15. Bg5 {[%clk 0:03:30]} 15...
Nf5 {[%clk 0:02:50]} 16. Bxe7 {[%clk 0:03:17]} 16... Qxe7 {[%clk 0:02:46.4]} 17.
g3 {[%clk 0:02:21.7]} 17... hxg3 {[%clk 0:02:36.4]} 18. Qg5 {[%clk 0:02:06.3]}
18... gxf2+ {[%clk 0:02:23.2]} 19. Kxf2 {[%clk 0:02:04.2]} 19... Qxg5 {[%clk
0:02:02.4]} 20. Nxg5 {[%clk 0:02:01.8]} 20... Rh5 {[%clk 0:01:51.4]} 21. Rag1
{[%clk 0:01:54.1]} 21... O-O-O {[%clk 0:01:40.3]} 22. Nxf7 {[%clk 0:01:50.6]}
22... Rd7 {[%clk 0:01:29.7]} 23. Ng5 {[%clk 0:01:24.7]} 23... Rb7 {[%clk
0:01:20.1]} 24. Nxe6 {[%clk 0:00:58.5]} 24... Rxb2+ {[%clk 0:01:05.3]} 25. Kf3
{[%clk 0:00:46.8]} 25... Nh4+ {[%clk 0:01:00.1]} 26. Kg4 {[%clk 0:00:44.9]}
26... g6 {[%clk 0:00:52.4]} 27. Ng7 {[%clk 0:00:35.6]} 27... Nf3 {[%clk
0:00:27.4]} 28. Kxf3 {[%clk 0:00:26.1]} 28... Rh8 {[%clk 0:00:17.8]} 29. Rxg6
{[%clk 0:00:23.6]} 29... Rf8+ {[%clk 0:00:10.1]} 30. Kg4 {[%clk 0:00:21]} 30...
Rg2+ {[%clk 0:00:06.9]} 31. Kh5 {[%clk 0:00:18.2]} 31... Rh8+ {[%clk 0:00:01]}
32. Rh6 {[%clk 0:00:15.2]} 1-0

[Event "Live Chess"]
[Site "Chess.com"]
[Date "2023.05.20"]
[Round "-"]
[White "nigelst"]
[Black "ranvir123"]
[Result "0-1"]
[WhiteElo "1842"]
[BlackElo "875"]
[TimeControl "300"]
[EndTime "9:59:30 PDT"]
[Termination "ranvir123 won on time"]

1. e4 {[%clk 0:04:58.3]} 1... e5 {[%clk 0:04:59.4]} 2. Nf3 {[%clk 0:04:57.3]}
2... Nc6 {[%clk 0:04:58.7]} 3. Bb5 {[%clk 0:04:56.1]} 3... d6 {[%clk 0:04:55.6]}
4. O-O {[%clk 0:04:53.8]} 4... Bd7 {[%clk 0:04:54]} 5. d4 {[%clk 0:04:50.6]}
5... a6 {[%clk 0:04:50.5]} 6. Bxc6 {[%clk 0:04:48.3]} 6... Bxc6 {[%clk
0:04:49.2]} 7. dxe5 {[%clk 0:04:47.6]} 7... dxe5 {[%clk 0:04:47.9]} 8. Nxe5
{[%clk 0:04:41.5]} 8... Bxe4 {[%clk 0:04:43.1]} 9. Qe2 {[%clk 0:04:34.7]} 9...
Nf6 {[%clk 0:04:34.9]} 10. Bg5 {[%clk 0:04:31.7]} 10... Qd5 {[%clk 0:04:29.9]}
11. Nf3 {[%clk 0:04:07.8]} 11... O-O-O {[%clk 0:04:09]} 12. Nc3 {[%clk
0:04:06.2]} 12... Bxf3 {[%clk 0:03:58]} 13. Qxf3 {[%clk 0:03:44.6]} 13... Qxg5
{[%clk 0:03:45.9]} 14. Rad1 {[%clk 0:03:11.4]} 14... Bb4 {[%clk 0:03:37.1]} 15.
Ne4 {[%clk 0:02:54.9]} 15... Nxe4 {[%clk 0:03:32.4]} 16. Qxe4 {[%clk 0:02:53.1]}
16... Rxd1 {[%clk 0:03:19.2]} 17. Rxd1 {[%clk 0:02:50]} 17... Bd6 {[%clk
0:03:10.3]} 18. g3 {[%clk 0:02:17.7]} 18... Qh5 {[%clk 0:02:48.4]} 19. Re1
{[%clk 0:02:07.6]} 19... f5 {[%clk 0:02:36.6]} 20. Qd4 {[%clk 0:01:55]} 20...
Re8 {[%clk 0:02:29.5]} 21. Rf1 {[%clk 0:01:42.4]} 21... g6 {[%clk 0:02:10.2]}
22. Qa7 {[%clk 0:01:25.6]} 22... f4 {[%clk 0:01:50.1]} 23. Qa8+ {[%clk 0:01:19]}
23... Kd7 {[%clk 0:01:48.5]} 24. Qxb7 {[%clk 0:01:18]} 24... fxg3 {[%clk
0:01:45.1]} 25. hxg3 {[%clk 0:01:15.6]} 25... Bf8 {[%clk 0:01:36.9]} 26. Qxa6
{[%clk 0:00:54.7]} 26... Re2 {[%clk 0:01:25.7]} 27. Rd1+ {[%clk 0:00:18.6]}
27... Bd6 {[%clk 0:01:13.6]} 28. Qa4+ {[%clk 0:00:15.3]} 28... c6 {[%clk
0:01:10.1]} 29. Qa7+ {[%clk 0:00:14]} 29... Ke6 {[%clk 0:01:08.4]} 30. Qb7
{[%clk 0:00:07.9]} 30... Bxg3 {[%clk 0:00:58.8]} 31. Qc8+ {[%clk 0:00:05.9]}
31... Kf6 {[%clk 0:00:49]} 32. Qf8+ {[%clk 0:00:04.7]} 32... Kg5 {[%clk
0:00:46.6]} 33. Qd8+ {[%clk 0:00:02]} 33... Kh6 {[%clk 0:00:43]} 34. Qf8+ {[%clk
0:00:01.5]} 34... Kg5 {[%clk 0:00:41.7]} 35. Qd8+ {[%clk 0:00:00.5]} 35... Kf5
{[%clk 0:00:39.1]} 36. Qf8+ {[%clk 0:00:00.4]} 36... Kg4 {[%clk 0:00:34]} 37.
Qe8 {[%clk 0:00:00.1]} 37... Qh2+ {[%clk 0:00:28.9]} 0-1

[Event "Live Chess"]
[Site "Chess.com"]
[Date "2023.05.20"]
[Round "-"]
[White "PiotrD11"]
[Black "alexlines8"]
[Result "0-1"]
[WhiteElo "1307"]
[BlackElo "1270"]
[TimeControl "300"]
[EndTime "9:59:31 PDT"]
[Termination "alexlines8 won by resignation"]

1. e4 {[%clk 0:04:59.1]} 1... c6 {[%clk 0:04:58]} 2. d4 {[%clk 0:04:58]} 2... d5
{[%clk 0:04:57.3]} 3. e5 {[%clk 0:04:56.8]} 3... c5 {[%clk 0:04:56.4]} 4. c3
{[%clk 0:04:55.4]} 4... Nc6 {[%clk 0:04:54.3]} 5. Nf3 {[%clk 0:04:54.8]} 5...
cxd4 {[%clk 0:04:50.8]} 6. cxd4 {[%clk 0:04:52.6]} 6... Bg4 {[%clk 0:04:50.2]}
7. Bb5 {[%clk 0:04:45.9]} 7... e6 {[%clk 0:04:42]} 8. O-O {[%clk 0:04:43.9]}
8... Ne7 {[%clk 0:04:34.6]} 9. Be3 {[%clk 0:04:42.1]} 9... Nf5 {[%clk
0:04:30.2]} 10. Nbd2 {[%clk 0:04:37.2]} 10... Be7 {[%clk 0:04:03.8]} 11. h3
{[%clk 0:04:33]} 11... Bxf3 {[%clk 0:04:01.6]} 12. Nxf3 {[%clk 0:04:28.9]} 12...
O-O {[%clk 0:03:50.9]} 13. Bxc6 {[%clk 0:04:25.4]} 13... bxc6 {[%clk 0:03:47.4]}
14. Rc1 {[%clk 0:04:21.8]} 14... Qb6 {[%clk 0:03:35.5]} 15. Qc2 {[%clk
0:04:18.3]} 15... Rac8 {[%clk 0:03:30.8]} 16. g4 {[%clk 0:04:04.7]} 16... Nxe3
{[%clk 0:03:26.5]} 17. fxe3 {[%clk 0:04:02.4]} 17... Rc7 {[%clk 0:03:13.2]} 18.
a3 {[%clk 0:03:57.2]} 18... Rb8 {[%clk 0:03:07.3]} 19. b4 {[%clk 0:03:55]} 19...
a5 {[%clk 0:02:59.4]} 20. bxa5 {[%clk 0:03:51.7]} 20... Qxa5 {[%clk 0:02:56.4]}
21. Qf2 {[%clk 0:03:43.1]} 21... Qxa3 {[%clk 0:02:43]} 22. h4 {[%clk 0:03:39.8]}
22... Qd3 {[%clk 0:02:22]} 23. h5 {[%clk 0:03:31.9]} 23... Qe4 {[%clk
0:02:14.6]} 24. Nd2 {[%clk 0:03:27.6]} 24... Qxg4+ {[%clk 0:02:11]} 25. Kh2
{[%clk 0:03:18.5]} 25... Qxh5+ {[%clk 0:02:07.5]} 26. Kg3 {[%clk 0:03:17]} 26...
Bh4+ {[%clk 0:02:05.5]} 0-1

[Event "Live Chess"]
[Site "Chess.com"]
[Date "2023.05.20"]
[Round "-"]
[White "LiamBellwood"]
[Black "GMHarry-youtube"]
[Result "0-1"]
[WhiteElo "2093"]
[BlackElo "2183"]
[TimeControl "300"]
[EndTime "9:59:34 PDT"]
[Termination "GMHarry-youtube won on time"]

1. d4 {[%clk 0:04:59.5]} 1... Nf6 {[%clk 0:04:58.7]} 2. Nc3 {[%clk 0:04:59.1]}
2... g6 {[%clk 0:04:58.3]} 3. Bf4 {[%clk 0:04:58.3]} 3... d5 {[%clk 0:04:56.3]}
4. e3 {[%clk 0:04:57.1]} 4... c6 {[%clk 0:04:55.6]} 5. Nf3 {[%clk 0:04:53.2]}
5... Bg7 {[%clk 0:04:54.9]} 6. h4 {[%clk 0:04:50.3]} 6... h5 {[%clk 0:04:53.2]}
7. Be2 {[%clk 0:04:49.1]} 7... O-O {[%clk 0:04:52.3]} 8. Ne5 {[%clk 0:04:48.7]}
8... Nbd7 {[%clk 0:04:49.1]} 9. Qd2 {[%clk 0:04:48.2]} 9... Nxe5 {[%clk
0:04:48.1]} 10. Bxe5 {[%clk 0:04:47.8]} 10... b5 {[%clk 0:04:46.7]} 11. a3
{[%clk 0:04:45.2]} 11... a5 {[%clk 0:04:45.7]} 12. f3 {[%clk 0:04:40.1]} 12...
Be6 {[%clk 0:04:38.7]} 13. g4 {[%clk 0:04:28.3]} 13... b4 {[%clk 0:04:35.8]} 14.
Na4 {[%clk 0:04:17.7]} 14... hxg4 {[%clk 0:04:32.1]} 15. Bxf6 {[%clk 0:04:05.9]}
15... exf6 {[%clk 0:04:27.8]} 16. fxg4 {[%clk 0:04:00.6]} 16... f5 {[%clk
0:04:26.9]} 17. g5 {[%clk 0:03:57.6]} 17... f6 {[%clk 0:04:26.2]} 18. Nc5 {[%clk
0:03:48.4]} 18... Bc8 {[%clk 0:04:18]} 19. h5 {[%clk 0:03:41.3]} 19... fxg5
{[%clk 0:04:16.3]} 20. hxg6 {[%clk 0:03:31.8]} 20... Qf6 {[%clk 0:04:15]} 21.
Bh5 {[%clk 0:03:24.6]} 21... g4 {[%clk 0:04:13.8]} 22. Qh2 {[%clk 0:03:18.8]}
22... Qg5 {[%clk 0:04:11.3]} 23. Bxg4 {[%clk 0:03:09.7]} 23... Qxe3+ {[%clk
0:04:09.8]} 24. Be2 {[%clk 0:03:07.9]} 24... Re8 {[%clk 0:04:05.9]} 25. Nd3
{[%clk 0:01:30.4]} 25... f4 {[%clk 0:03:58.6]} 26. Qh7+ {[%clk 0:01:25.8]} 26...
Kf8 {[%clk 0:03:57.3]} 27. Qh5 {[%clk 0:01:25.7]} 27... f3 {[%clk 0:03:50.8]}
28. Rh2 {[%clk 0:01:14.8]} 28... fxe2 {[%clk 0:03:34.6]} 29. Rf2+ {[%clk
0:01:12.9]} 29... Ke7 {[%clk 0:03:26.7]} 30. Rf7+ {[%clk 0:01:00]} 30... Kd8
{[%clk 0:03:02.7]} 31. Qh4+ {[%clk 0:00:43.7]} 31... Re7 {[%clk 0:03:00.5]} 32.
Rxg7 {[%clk 0:00:43.3]} 32... Bf5 {[%clk 0:02:32.1]} 33. Qxe7+ {[%clk 0:00:39]}
33... Qxe7 {[%clk 0:02:30.3]} 34. Rxe7 {[%clk 0:00:38.9]} 34... Kxe7 {[%clk
0:02:29.6]} 35. Ne5 {[%clk 0:00:36.7]} 35... Kf6 {[%clk 0:02:25.7]} 36. Kxe2
{[%clk 0:00:34]} 36... Bxg6 {[%clk 0:02:24.8]} 37. Nxg6 {[%clk 0:00:30.7]} 37...
Kxg6 {[%clk 0:02:22.9]} 38. axb4 {[%clk 0:00:30.6]} 38... Re8+ {[%clk 0:02:21]}
39. Kd3 {[%clk 0:00:29.7]} 39... axb4 {[%clk 0:02:20.8]} 40. Ra4 {[%clk
0:00:29.1]} 40... Rb8 {[%clk 0:02:19.7]} 41. c3 {[%clk 0:00:28]} 41... bxc3
{[%clk 0:02:14.2]} 42. bxc3 {[%clk 0:00:27.9]} 42... Kf6 {[%clk 0:02:13.5]} 43.
Ra6 {[%clk 0:00:27.1]} 43... Rc8 {[%clk 0:02:12.2]} 44. c4 {[%clk 0:00:26.8]}
44... Ke6 {[%clk 0:02:09.3]} 45. c5 {[%clk 0:00:24.8]} 45... Kd7 {[%clk
0:02:05.9]} 46. Ra7+ {[%clk 0:00:23.5]} 46... Ke6 {[%clk 0:02:04]} 47. Rh7
{[%clk 0:00:22.9]} 47... Rg8 {[%clk 0:02:00.3]} 48. Rh6+ {[%clk 0:00:21.9]}
48... Kd7 {[%clk 0:01:59.5]} 49. Rh7+ {[%clk 0:00:21.2]} 49... Kc8 {[%clk
0:01:55.4]} 50. Rh6 {[%clk 0:00:20.8]} 50... Kb7 {[%clk 0:01:53.7]} 51. Rh7+
{[%clk 0:00:19.3]} 51... Ka6 {[%clk 0:01:52.3]} 52. Rh6 {[%clk 0:00:19.1]} 52...
Kb5 {[%clk 0:01:51.2]} 53. Rh3 {[%clk 0:00:16.3]} 53... Rg1 {[%clk 0:01:50.1]}
54. Ke3 {[%clk 0:00:11.9]} 54... Rc1 {[%clk 0:01:45.9]} 55. Rh2 {[%clk
0:00:09.8]} 55... Rc3+ {[%clk 0:01:43.6]} 56. Kf4 {[%clk 0:00:09.2]} 56... Rd3
{[%clk 0:01:40]} 57. Ke5 {[%clk 0:00:07.3]} 57... Kc4 {[%clk 0:01:38.7]} 58. Kd6
{[%clk 0:00:06.8]} 58... Kxd4 {[%clk 0:01:32.2]} 59. Rh4+ {[%clk 0:00:05.7]}
59... Kc3 {[%clk 0:01:29.9]} 60. Kxc6 {[%clk 0:00:05.6]} 60... d4 {[%clk
0:01:29.1]} 61. Kd5 {[%clk 0:00:03.7]} 61... Rd1 {[%clk 0:01:22.4]} 62. c6
{[%clk 0:00:03.4]} 62... Rg1 {[%clk 0:01:13.3]} 63. Rxd4 {[%clk 0:00:02.4]}
63... Rg5+ {[%clk 0:01:12]} 64. Ke6 {[%clk 0:00:00.6]} 64... Kxd4 {[%clk
0:01:10.5]} 65. Kd7 {[%clk 0:00:00.5]} 65... Rg7+ {[%clk 0:01:09.3]} 0-1

[Event "Live Chess"]
[Site "Chess.com"]
[Date "2023.05.20"]
[Round "-"]
[White "YF22Raptor"]
[Black "stevefairhurst"]
[Result "1-0"]
[WhiteElo "1006"]
[BlackElo "541"]
[TimeControl "300"]
[EndTime "9:59:37 PDT"]
[Termination "YF22Raptor won by checkmate"]

1. e4 {[%clk 0:04:57.8]} 1... e5 {[%clk 0:04:58.4]} 2. Nf3 {[%clk 0:04:56.8]}
2... Nf6 {[%clk 0:04:56.1]} 3. d4 {[%clk 0:04:55.7]} 3... Nxe4 {[%clk 0:04:53]}
4. dxe5 {[%clk 0:04:52]} 4... d5 {[%clk 0:04:51.2]} 5. Nc3 {[%clk 0:04:49.5]}
5... Bb4 {[%clk 0:04:43.2]} 6. Bd2 {[%clk 0:04:45.8]} 6... Bg4 {[%clk
0:04:38.6]} 7. h3 {[%clk 0:04:37.6]} 7... Bf5 {[%clk 0:04:28.4]} 8. Nxe4 {[%clk
0:04:32.5]} 8... Bxe4 {[%clk 0:04:23.9]} 9. Bxb4 {[%clk 0:04:29.6]} 9... Nc6
{[%clk 0:04:17.4]} 10. Bc3 {[%clk 0:04:26]} 10... O-O {[%clk 0:04:06.5]} 11. Bb5
{[%clk 0:04:19.7]} 11... Ne7 {[%clk 0:03:51.5]} 12. Rg1 {[%clk 0:04:11.5]} 12...
c6 {[%clk 0:03:47]} 13. Bd3 {[%clk 0:04:10.1]} 13... Qb6 {[%clk 0:03:29.5]} 14.
Bxe4 {[%clk 0:04:07.9]} 14... dxe4 {[%clk 0:03:28.1]} 15. Nd2 {[%clk 0:04:02.3]}
15... e3 {[%clk 0:03:14.4]} 16. Nc4 {[%clk 0:04:01.1]} 16... Qc5 {[%clk
0:03:05.2]} 17. Nxe3 {[%clk 0:03:59.6]} 17... Rfd8 {[%clk 0:02:51.8]} 18. Qe2
{[%clk 0:03:55.8]} 18... Nd5 {[%clk 0:02:41.1]} 19. Nxd5 {[%clk 0:03:52]} 19...
Qxd5 {[%clk 0:02:38.9]} 20. Rd1 {[%clk 0:03:50.1]} 20... Qe6 {[%clk 0:02:27]}
21. Rxd8+ {[%clk 0:03:48.3]} 21... Rxd8 {[%clk 0:02:24.8]} 22. a3 {[%clk
0:03:47.9]} 22... Qa2 {[%clk 0:02:15.3]} 23. f4 {[%clk 0:03:41.7]} 23... Qa1+
{[%clk 0:02:12.8]} 24. Kf2 {[%clk 0:03:40.8]} 24... Qa2 {[%clk 0:02:00]} 25. Rd1
{[%clk 0:03:34.6]} 25... Rxd1 {[%clk 0:01:46.7]} 26. Qxd1 {[%clk 0:03:33.6]}
26... g6 {[%clk 0:01:45.4]} 27. Qd8+ {[%clk 0:03:27.6]} 27... Kg7 {[%clk
0:01:43.9]} 28. e6+ {[%clk 0:03:26.7]} 28... Kh6 {[%clk 0:01:35]} 29. Qf8+
{[%clk 0:03:21.8]} 29... Kh5 {[%clk 0:01:30.3]} 30. g4+ {[%clk 0:03:20.4]} 30...
Kh4 {[%clk 0:01:28.5]} 31. Qh6# {[%clk 0:03:18.5]} 1-0

[Event "Live Chess"]
[Site "Chess.com"]
[Date "2023.05.20"]
[Round "-"]
[White "HD_IN4k"]
[Black "BillW-GrangerIN"]
[Result "0-1"]
[WhiteElo "282"]
[BlackElo "240"]
[TimeControl "300"]
[EndTime "9:59:41 PDT"]
[Termination "BillW-GrangerIN won on time"]

1. d4 {[%clk 0:04:50.3]} 1... d5 {[%clk 0:04:55.7]} 2. c4 {[%clk 0:04:48.6]}
2... e5 {[%clk 0:04:51.4]} 3. Nf3 {[%clk 0:04:33.8]} 3... Nc6 {[%clk 0:04:41.6]}
4. Nxe5 {[%clk 0:04:30.3]} 4... Nxe5 {[%clk 0:04:36.9]} 5. dxe5 {[%clk 0:04:30]}
5... dxc4 {[%clk 0:04:33.3]} 6. Qa4+ {[%clk 0:04:19]} 6... Bd7 {[%clk
0:04:21.2]} 7. Qxc4 {[%clk 0:04:16]} 7... Be6 {[%clk 0:03:35.4]} 8. Qd3 {[%clk
0:04:11.5]} 8... Bc5 {[%clk 0:03:23.7]} 9. h4 {[%clk 0:04:07.1]} 9... Ne7 {[%clk
0:03:15.4]} 10. g3 {[%clk 0:04:00]} 10... O-O {[%clk 0:03:09.7]} 11. Bg2 {[%clk
0:03:59.2]} 11... Qd7 {[%clk 0:02:38.7]} 12. Bh3 {[%clk 0:03:46.3]} 12... Bxh3
{[%clk 0:02:18.5]} 13. Rxh3 {[%clk 0:03:42.2]} 13... Qxh3 {[%clk 0:02:13.2]} 14.
e3 {[%clk 0:03:18.7]} 14... Qh1+ {[%clk 0:02:04.8]} 15. Qf1 {[%clk 0:03:11.8]}
15... Bb4+ {[%clk 0:01:58.8]} 16. Bd2 {[%clk 0:03:02.6]} 16... Qe4 {[%clk
0:01:10.8]} 17. a3 {[%clk 0:02:39.7]} 17... Ba5 {[%clk 0:00:57.5]} 18. Nc3
{[%clk 0:01:03.4]} 18... Qc2 {[%clk 0:00:40.1]} 19. Rc1 {[%clk 0:00:49.8]} 19...
Qxb2 {[%clk 0:00:32.4]} 20. Qb5 {[%clk 0:00:24.4]} 20... Qxa3 {[%clk 0:00:22.8]}
21. Nd5 {[%clk 0:00:04.1]} 21... Qd3 {[%clk 0:00:17.3]} 22. Bxa5 {[%clk
0:00:02.1]} 22... Qxb5 {[%clk 0:00:14.9]} 0-1

[Event "Live Chess"]
[Site "Chess.com"]
[Date "2023.05.20"]
[Round "-"]
[White "Jeffaroow"]
[Black "Ian-Morley"]
[Result "0-1"]
[WhiteElo "450"]
[BlackElo "1074"]
[TimeControl "300"]
[EndTime "9:59:52 PDT"]
[Termination "Ian-Morley won by checkmate"]

1. e4 {[%clk 0:04:59]} 1... d5 {[%clk 0:04:59]} 2. Nf3 {[%clk 0:04:56.2]} 2...
dxe4 {[%clk 0:04:57.9]} 3. Ng5 {[%clk 0:04:54.8]} 3... h6 {[%clk 0:04:54.9]} 4.
Nxe4 {[%clk 0:04:52.8]} 4... e5 {[%clk 0:04:54.1]} 5. Nbc3 {[%clk 0:04:51.2]}
5... f5 {[%clk 0:04:52]} 6. Ng3 {[%clk 0:04:44.8]} 6... Be6 {[%clk 0:04:44]} 7.
Bd3 {[%clk 0:04:38.3]} 7... f4 {[%clk 0:04:42.2]} 8. Nge4 {[%clk 0:04:33.8]}
8... Nf6 {[%clk 0:04:34.1]} 9. Nxf6+ {[%clk 0:04:29]} 9... Qxf6 {[%clk
0:04:33.1]} 10. a3 {[%clk 0:04:21.5]} 10... Nd7 {[%clk 0:04:31.9]} 11. Nb5
{[%clk 0:04:17.8]} 11... Bd6 {[%clk 0:04:27.7]} 12. Nxd6+ {[%clk 0:04:15.2]}
12... cxd6 {[%clk 0:04:25.7]} 13. b3 {[%clk 0:04:08]} 13... O-O {[%clk
0:04:18.6]} 14. Bc4 {[%clk 0:04:04.6]} 14... Bxc4 {[%clk 0:04:17.2]} 15. bxc4
{[%clk 0:04:02.8]} 15... Nc5 {[%clk 0:04:16.4]} 16. Rb1 {[%clk 0:04:00.2]} 16...
b6 {[%clk 0:04:15.1]} 17. d3 {[%clk 0:03:53.7]} 17... Rf7 {[%clk 0:04:07.5]} 18.
O-O {[%clk 0:03:51.5]} 18... Raf8 {[%clk 0:04:05.6]} 19. Qf3 {[%clk 0:03:44.2]}
19... Na4 {[%clk 0:04:02.5]} 20. Rb3 {[%clk 0:03:34.8]} 20... e4 {[%clk
0:03:48.2]} 21. dxe4 {[%clk 0:03:23]} 21... g5 {[%clk 0:03:43.5]} 22. h3 {[%clk
0:03:09.5]} 22... Nc5 {[%clk 0:03:42.1]} 23. Rb2 {[%clk 0:02:59.2]} 23... Nxe4
{[%clk 0:03:38.8]} 24. Qxe4 {[%clk 0:02:47]} 24... Re7 {[%clk 0:03:37.3]} 25.
Qf3 {[%clk 0:02:34.9]} 25... Rfe8 {[%clk 0:03:30.9]} 26. Bd2 {[%clk 0:02:30.5]}
26... Qxb2 {[%clk 0:03:27.9]} 27. Qh5 {[%clk 0:02:23.9]} 27... Qxc2 {[%clk
0:03:20.8]} 28. Bb4 {[%clk 0:02:19.1]} 28... Re2 {[%clk 0:03:14.3]} 29. h4
{[%clk 0:01:56.3]} 29... Qxc4 {[%clk 0:03:10.7]} 30. hxg5 {[%clk 0:01:51.3]}
30... a5 {[%clk 0:02:57.1]} 31. Bxd6 {[%clk 0:01:41.6]} 31... Re1 {[%clk
0:02:51.7]} 32. g3 {[%clk 0:01:24.6]} 32... Qxf1+ {[%clk 0:02:48.8]} 33. Kh2
{[%clk 0:01:21.2]} 33... Qh1# {[%clk 0:02:47.1]} 0-1